Workbook

Sheet Raporttinäkymä
B1: Raporttinäkymä
F4: Kokonaismäärä
F5: =GETPIVOTDATA("Määrä / Jäljellä olevat",'Pivot-tiedot'!$B$10) -> 3
F7: Kuukausikulut yhteensä
F8: =GETPIVOTDATA("Summa / Kuukausikulut yhteensä",'Pivot-tiedot'!$B$10) -> 1765.594304
F10: Toimintakustannukset
F11: =GETPIVOTDATA("Summa / Kuukausittaiset toimintakustannukset yhteensä",'Pivot-tiedot'!$B$10) -> 605
F13: Kuukausipoisto
F14: =GETPIVOTDATA("Summa / Kuukausipoisto (tasapoisto)",'Pivot-tiedot'!$B$10) -> 659.7222222
F16: Maksun määrä
F17: =GETPIVOTDATA("Summa / Kuukausierä",'Pivot-tiedot'!$B$10) -> 1160.594304
F19: Nykyinen arvo
F20: =GETPIVOTDATA("Summa / Nykyinen arvo",'Pivot-tiedot'!$B$10) -> 36947.03196

Sheet Laiteluettelo
B1: Laiteluettelo
E3: Korosta, kun jäljellä olevien kuukausierien määrä on vähemmän kuin: | F3: 20
B5: Erä- tai sarjanumero | C5: Kohteen kuvaus (Tyyppi ja malli) | D5: Sijainti | E5: Kunto | F5: Toimittaja | G5: Jäljellä olevat käyttövuodet | H5: Alkuarvo | I5: Käsiraha | J5: Osto- tai vuokrauspäivä | K5: Laina-aika (vuosina) | L5: Lainakorko | M5: Kuukausittaiset toimintakustannukset yhteensä | N5: Arvioitu arvo sopimuksen lopussa | O5: Jäljellä olevat kuukausierät | P5: Kuukausierä | Q5: Kuukausikulut yhteensä | R5: Vuosipoisto (tasapoisto) | S5: Kuukausipoisto (tasapoisto) | T5: Nykyinen arvo
B6: 123 | C6: Tyyppimalli 1 | D6: Päähaara | E6: Hyvä | F6: Paikallinen | G6: 5 | H6: 30000 | I6: 5000 | J6: 2011-01-15 | K6: 4 | L6: 0.1 | M6: 200 | N6: 20000 | O6: =IFERROR(SUMPRODUCT(--(DAY(ROW(OFFSET($A$1,,,DATE(YEAR(Equipment[[#This Row],[Osto- tai vuokrauspäivä]])+Equipment[[#This Row],[Laina-aika (vuosina)]],MONTH(Equipment[[#This Row],[Osto- tai vuokrauspäivä]])-1,DAY(Equipment[[#This Row],[Osto- tai vuokrauspäivä]]))-TODAY()))+DATE(YEAR(Equipment[[#This Row],[Osto- tai vuokrauspäivä]])+Equipment[[#This Row],[Laina-aika (vuosina)]],MONTH(Equipment[[#This Row],[Osto- tai vuokrauspäivä]]),DAY(Equipment[[#This Row],[Osto- tai vuokrauspäivä]]))-1)=DAY(Equipment[[#This Row],[Osto- tai vuokrauspäivä]]))),0) -> 24 | P6: =IFERROR(-(Equipment[Alkuarvo]>0)*(Equipment[Alkuarvo]<>Equipment[Käsiraha])*PMT(Equipment[Lainakorko]/MonthsInYear,Equipment[Laina-aika (vuosina)]*MonthsInYear,Equipment[Alkuarvo]-Equipment[Käsiraha]),0) -> 634.0645859 | Q6: =Equipment[[#This Row],[Kuukausierä]]+Equipment[Kuukausittaiset toimintakustannukset yhteensä] -> 834.0645859 | R6: =IFERROR((Equipment[Alkuarvo]>0)*SLN(Equipment[Alkuarvo],Equipment[Arvioitu arvo sopimuksen lopussa],Equipment[Laina-aika (vuosina)]),0) -> 2500 | S6: =IFERROR(Equipment[Vuosipoisto (tasapoisto)]/MonthsInYear,0) -> 208.3333333 | T6: =IFERROR(Equipment[Alkuarvo]-(Equipment[Vuosipoisto (tasapoisto)]*((TODAY()-Equipment[Osto- tai vuokrauspäivä])/DaysInYear)),0) -> 25178.08219
B7: 234 | C7: Tyyppimalli 2 | D7: Päähaara | E7: Hyvä | F7: Paikallinen | G7: 4 | H7: 12500 | I7: 1500 | J7: 2011-03-10 | K7: 3 | L7: 0.0775 | M7: 120 | N7: 3000 | O7: =IFERROR(SUMPRODUCT(--(DAY(ROW(OFFSET($A$1,,,DATE(YEAR(Equipment[[#This Row],[Osto- tai vuokrauspäivä]])+Equipment[[#This Row],[Laina-aika (vuosina)]],MONTH(Equipment[[#This Row],[Osto- tai vuokrauspäivä]])-1,DAY(Equipment[[#This Row],[Osto- tai vuokrauspäivä]]))-TODAY()))+DATE(YEAR(Equipment[[#This Row],[Osto- tai vuokrauspäivä]])+Equipment[[#This Row],[Laina-aika (vuosina)]],MONTH(Equipment[[#This Row],[Osto- tai vuokrauspäivä]]),DAY(Equipment[[#This Row],[Osto- tai vuokrauspäivä]]))-1)=DAY(Equipment[[#This Row],[Osto- tai vuokrauspäivä]]))),0) -> 14 | P7: =IFERROR(-(Equipment[Alkuarvo]>0)*(Equipment[Alkuarvo]<>Equipment[Käsiraha])*PMT(Equipment[Lainakorko]/MonthsInYear,Equipment[Laina-aika (vuosina)]*MonthsInYear,Equipment[Alkuarvo]-Equipment[Käsiraha]),0) -> 343.4328001 | Q7: =Equipment[[#This Row],[Kuukausierä]]+Equipment[Kuukausittaiset toimintakustannukset yhteensä] -> 463.4328001 | R7: =IFERROR((Equipment[Alkuarvo]>0)*SLN(Equipment[Alkuarvo],Equipment[Arvioitu arvo sopimuksen lopussa],Equipment[Laina-aika (vuosina)]),0) -> 3166.666667 | S7: =IFERROR(Equipment[Vuosipoisto (tasapoisto)]/MonthsInYear,0) -> 263.8888889 | T7: =IFERROR(Equipment[Alkuarvo]-(Equipment[Vuosipoisto (tasapoisto)]*((TODAY()-Equipment[Osto- tai vuokrauspäivä])/DaysInYear)),0) -> 6860.730594
B8: 345 | C8: Tyyppimalli 2 | D8: Konttori 1 | E8: Välttävä | F8: Muu | G8: 1 | H8: 10000 | I8: 2500 | J8: 2010-09-15 | K8: 4 | L8: 0.08 | M8: 285 | N8: 1000 | O8: =IFERROR(SUMPRODUCT(--(DAY(ROW(OFFSET($A$1,,,DATE(YEAR(Equipment[[#This Row],[Osto- tai vuokrauspäivä]])+Equipment[[#This Row],[Laina-aika (vuosina)]],MONTH(Equipment[[#This Row],[Osto- tai vuokrauspäivä]])-1,DAY(Equipment[[#This Row],[Osto- tai vuokrauspäivä]]))-TODAY()))+DATE(YEAR(Equipment[[#This Row],[Osto- tai vuokrauspäivä]])+Equipment[[#This Row],[Laina-aika (vuosina)]],MONTH(Equipment[[#This Row],[Osto- tai vuokrauspäivä]]),DAY(Equipment[[#This Row],[Osto- tai vuokrauspäivä]]))-1)=DAY(Equipment[[#This Row],[Osto- tai vuokrauspäivä]]))),0) -> 20 | P8: =IFERROR(-(Equipment[Alkuarvo]>0)*(Equipment[Alkuarvo]<>Equipment[Käsiraha])*PMT(Equipment[Lainakorko]/MonthsInYear,Equipment[Laina-aika (vuosina)]*MonthsInYear,Equipment[Alkuarvo]-Equipment[Käsiraha]),0) -> 183.0969176 | Q8: =Equipment[[#This Row],[Kuukausierä]]+Equipment[Kuukausittaiset toimintakustannukset yhteensä] -> 468.0969176 | R8: =IFERROR((Equipment[Alkuarvo]>0)*SLN(Equipment[Alkuarvo],Equipment[Arvioitu arvo sopimuksen lopussa],Equipment[Laina-aika (vuosina)]),0) -> 2250 | S8: =IFERROR(Equipment[Vuosipoisto (tasapoisto)]/MonthsInYear,0) -> 187.5 | T8: =IFERROR(Equipment[Alkuarvo]-(Equipment[Vuosipoisto (tasapoisto)]*((TODAY()-Equipment[Osto- tai vuokrauspäivä])/DaysInYear)),0) -> 4908.219178
B9: Yhteensä | G9: =SUBTOTAL(101,Equipment[Jäljellä olevat käyttövuodet ]) -> 3.333333333 | H9: =SUBTOTAL(109,Equipment[Alkuarvo]) -> 52500 | I9: =SUBTOTAL(109,Equipment[Käsiraha]) -> 9000 | K9: =SUBTOTAL(101,Equipment[Laina-aika (vuosina)]) -> 3.666666667 | L9: =SUBTOTAL(101,Equipment[Lainakorko]) -> 0.08583333333 | M9: =SUBTOTAL(109,Equipment[Kuukausittaiset toimintakustannukset yhteensä]) -> 605 | N9: =SUBTOTAL(109,Equipment[Arvioitu arvo sopimuksen lopussa]) -> 24000 | O9: =SUBTOTAL(101,Equipment[Jäljellä olevat kuukausierät]) -> 19.33333333 | P9: =SUBTOTAL(109,Equipment[Kuukausierä]) -> 1160.594304 | Q9: =SUBTOTAL(109,Equipment[Kuukausikulut yhteensä]) -> 1765.594304 | R9: =SUBTOTAL(101,Equipment[Vuosipoisto (tasapoisto)]) -> 2638.888889 | S9: =SUBTOTAL(101,Equipment[Kuukausipoisto (tasapoisto)]) -> 219.9074074 | T9: =SUBTOTAL(109,Equipment[Nykyinen arvo]) -> 36947.03196

Sheet Pivot-tiedot (hidden)
B1: Pivot-tiedot
B2: Tämä taulukko on piilotettava. Taulukon Pivot-taulukon rakenteen muuttaminen voi johtaa virheisiin Raporttinäkymä-ikkunan osittajissa.
B3: Kohteen kuvaus (Tyyppi ja malli) | C3: (Kaikki)
B4: Sijainti | C4: (Kaikki)
B5: Kunto | C5: (Kaikki)
B6: Toimittaja | C6: (Kaikki)
B7: Laina-aika (vuosina) | C7: (Kaikki)
B8: Alkuarvo | C8: (Kaikki)
B10: Riviotsikot | C10: Määrä / Jäljellä olevat | D10: Summa / Kuukausittaiset toimintakustannukset yhteensä | E10: Summa / Kuukausierä | F10: Summa / Kuukausikulut yhteensä | G10: Summa / Kuukausipoisto (tasapoisto) | H10: Summa / Nykyinen arvo
B11: 123 | C11: 1 | D11: 200 | E11: 634.0645859 | F11: 834.0645859 | G11: 208.3333333 | H11: 25178.08219
B12: 234 | C12: 1 | D12: 120 | E12: 343.4328001 | F12: 463.4328001 | G12: 263.8888889 | H12: 6860.730594
B13: 345 | C13: 1 | D13: 285 | E13: 183.0969176 | F13: 468.0969176 | G13: 187.5 | H13: 4908.219178
B14: Kaikki yhteensä | C14: 3 | D14: 605 | E14: 1160.594304 | F14: 1765.594304 | G14: 659.7222222 | H14: 36947.03196
